bitfinex/quotes_SOLUSD_20260214
["timestamp","ask_amount","ask_price","bid_price","bid_amount"]
[1771082371081,11.42504598,87.527,87.491,1.17152064]
[1771082371287,12.67638916,87.527,87.501,1.17161204]
[1771082371681,11.42385242,87.537,87.502,1.17161204]
[1771082372186,1.25134318,87.536,87.502,1.17161204]
[1771082373690,11.42400182,87.535,87.503,1.17161204]
[1771082374085,11.42400182,87.535,87.511,1.17161204]
[1771082374594,1.25134318,87.534,87.511,1.17161204]
[1771082374803,1.25134318,87.534,87.501,1.17161204]
[1771082376603,1.25134318,87.532,87.501,1.17161204]
[1771082376815,11.42369355,87.538,87.511,1.17161204]
[1771082377103,1.25134318,87.537,87.511,1.17161204]
[1771082377304,1.25134318,87.537,87.502,11.42831021]
[1771082377611,1.25134318,87.537,87.503,1.17161204]
[1771082377797,1.25134318,87.529,87.503,1.17161204]
[1771082379112,11.42491545,87.528,87.503,1.17161204]
[1771082379490,0.1,87.54,87.511,1.17161204]
[1771082380592,1.20513953,87.529,87.502,1.20665506]
[1771082381506,11.42491545,87.528,87.502,1.20665506]
[1771082382707,0.1,87.54,87.521,1.20665506]
[1771082382885,1.20513953,87.56,87.522,1.20665506]
[1771082383090,1.20513953,87.56,87.503,39.99862861]
[1771082383091,1.20513953,87.539,87.504,1.20665506]
[1771082383801,11.42244204,87.547,87.511,1.20665506]
[1771082384516,11.42244204,87.547,87.521,1.20665506]
[1771082385010,28.55139682,87.562,87.505,39.99771441]
[1771082385011,11.41942342,87.571,87.541,1.20665506]
[1771082385225,0.1,87.6,87.59,5.96534943]
[1771082385512,2.92645434,87.63,87.59,5.96534943]
[1771082385513,11.4142682,87.61,87.59,8.89180377]
[1771082385697,11.41293101,87.62,87.591,11.41669806]
[1771082386012,1.2710405,87.623,87.591,11.41669806]
[1771082386201,1e-08,87.605,87.6,2.92645434]
[1771082386510,1.2710405,87.632,87.6,2.92645434]
[1771082386807,1.2710405,87.646,87.61,2.92645434]
[1771082387008,1.2710405,87.646,87.591,11.41669806]
[1771082387193,1.2710405,87.609,87.57,2.92645434]
[1771082387697,1.2710405,87.609,87.564,4.61729252]
[1771082387698,1.2710405,87.607,87.556,4.61729252]
[1771082387902,1.2710405,87.599,87.553,11.42165317]
[1771082388104,1.2710405,87.599,87.56,2.92645434]
[1771082388406,1.2710405,87.599,87.57,2.92645434]
[1771082388594,1.2710405,87.599,87.56,2.92645434]
[1771082389314,1.2710405,87.599,87.553,11.42165317]
[1771082389796,1.2710405,87.597,87.56,2.92645434]
[1771082389996,1.2710405,87.597,87.57,2.92645434]
[1771082390721,1.2710405,87.597,87.55,2.92645434]
[1771082391011,1.2710405,87.597,87.551,0.02061877]
[1771082391313,39.95525011,87.598,87.544,11.42282737]
[1771082391314,1.2710405,87.589,87.544,11.42282737]
[1771082391498,2.92645434,87.58,87.544,11.42282737]
[1771082391698,2.92645434,87.58,87.543,34.97271118]
[1771082391699,1.2710405,87.577,87.543,34.95209241]
[1771082392715,1.2710405,87.577,87.55,2.92645434]
[1771082393111,1.2710405,87.577,87.544,11.44676042]
[1771082393616,1.2710405,87.577,87.545,0.02723018]
[1771082394799,1.2710405,87.569,87.543,34.95209241]
[1771082396001,1.2710405,87.559,87.543,34.95209241]
[1771082397007,1.2710405,87.557,87.543,34.95209241]
[1771082398515,1.2710405,87.557,87.52,11.46891068]
[1771082398821,1.2710405,87.557,87.51,45.40645434]
[1771082398822,1.2710405,87.547,87.514,11.42663098]
[1771082399702,1.2710405,87.547,87.515,0.04614973]
[1771082401320,11.42256642,87.546,87.515,0.04614973]
[1771082402604,1.2710405,87.579,87.531,0.05807284]
[1771082403515,1.2710405,87.577,87.532,0.06095958]
[1771082403712,1.2710405,87.577,87.541,0.06095958]
[1771082404414,1.2710405,87.594,87.551,0.0638044]
[1771082404618,1.2710405,87.594,87.561,0.0638044]
[1771082404820,14.34202263,87.6,87.561,0.0638044]
[1771082405025,1.2710405,87.599,87.561,0.0638044]
[1771082405723,1.2710405,87.589,87.554,58.9]
[1771082406825,1.2710405,87.597,87.556,0.06939638]
[1771082407618,1.2710405,87.597,87.561,0.07214714]
[1771082407823,1.2710405,87.629,87.581,0.07214714]
[1771082408329,1.2710405,87.619,87.581,0.07214714]
[1771082408834,1.2710405,87.619,87.59,7.30567308]
[1771082409034,12.68410588,87.619,87.591,11.41669806]
[1771082409235,11.41231863,87.625,87.592,0.07754522]
[1771082409441,1.2710405,87.624,87.591,11.41669806]
[1771082409730,11.41161506,87.631,87.6,7.30567308]
[1771082409916,1.2710405,87.63,87.6,7.30567308]
[1771082410116,1.2710405,87.629,87.6,7.30567308]
[1771082410511,1.2710405,87.629,87.592,0.07754522]
[1771082411425,1.2710405,87.627,87.591,11.41669806]
[1771082412125,1.2710405,87.627,87.59,7.30567308]
[1771082412328,1.2710405,87.627,87.592,0.08543654]
[1771082412927,1.2710405,87.627,87.6,7.30567308]
[1771082414033,1.2710405,87.649,87.602,0.09053769]
[1771082414336,1.2710405,87.647,87.611,0.09053769]
[1771082414513,1.2710405,87.647,87.62,7.30567308]
[1771082414714,1.2710405,87.647,87.611,0.09053769]
[1771082415016,1.2710405,87.647,87.62,7.30567308]
[1771082415217,1.2710405,87.647,87.621,0.09303477]
[1771082415936,1.2710405,87.647,87.62,7.30567308]
[1771082416130,1.2710405,87.639,87.6,7.30567308]
[1771082416528,1.2710405,87.639,87.593,0.09550707]
[1771082416710,1.2710405,87.629,87.59,7.30567308]
[1771082417714,1.2710405,87.629,87.6,7.30567308]
[1771082418010,1.2710405,87.645,87.601,0.09795313]
[1771082418415,1.2710405,87.645,87.61,7.30567308]
[1771082418915,1.2710405,87.645,87.6,7.30567308]
[1771082419238,1.2710405,87.639,87.6,7.30567308]
[1771082420417,7.30567308,87.64,87.6,7.30567308]
[1771082420418,1.2710405,87.637,87.6,7.30567308]
[1771082420814,1.2710405,87.629,87.58,7.4107809]
[1771082421013,1.2710405,87.629,87.582,11.41782378]
[1771082421425,1.2710405,87.619,87.582,0.10744208]
[1771082421621,1.2710405,87.619,87.59,7.30567308]
[1771082421826,1.2710405,87.629,87.6,7.30567308]
[1771082422738,57.0401409,87.658,87.61,7.30567308]
[1771082422739,1.2710405,87.636,87.61,7.30567308]
[1771082423042,1.2710405,87.636,87.601,0.10975291]
[1771082424435,1.2710405,87.654,87.593,0.11427974]
[1771082424637,1.2710405,87.652,87.62,7.30567308]
[1771082424822,1.2710405,87.652,87.613,0.11427974]
[1771082425014,1.2710405,87.649,87.613,0.11427974]
[1771082425639,1.2710405,87.649,87.61,7.30567308]
[1771082427138,1.2710405,87.647,87.61,7.30567308]
[1771082427324,1.2710405,87.647,87.59,4.61729252]
[1771082427325,7.30567308,87.64,87.601,11.4153948]
[1771082427637,1.2710405,87.639,87.611,0.12087343]
[1771082428024,1.2710405,87.639,87.61,7.30567308]
[1771082428834,1.2710405,87.639,87.604,0.12304061]
[1771082429034,1.2710405,87.637,87.61,2.91895911]
[1771082429423,1.2710405,87.637,87.604,0.12304061]
[1771082429717,1.2710405,87.637,87.6,2.91895911]
[1771082430531,1.2710405,87.629,87.58,2.91895911]
[1771082430744,1.2710405,87.619,87.581,0.12724995]
[1771082431042,1.2710405,87.619,87.59,2.91895911]
[1771082431639,1.2710405,87.628,87.6,3.04979411]
[1771082431820,11.41202076,87.627,87.601,0.130835]
[1771082432532,11.41202076,87.627,87.6,2.91895911]
[1771082432533,1.2710405,87.626,87.6,2.91895911]
[1771082432737,1.2710405,87.619,87.586,11.41732134]
[1771082433745,12.68422044,87.618,87.586,0.13436925]
[1771082433941,1.2710405,87.617,87.586,0.13436925]
[1771082435044,12.68448096,87.616,87.586,0.13436925]
[1771082435349,1.2710405,87.615,87.581,0.13778455]
[1771082436229,1.2710405,87.613,87.581,11.41800162]
[1771082436844,1.2710405,87.609,87.574,11.41883341]
[1771082438839,1.2710405,87.599,87.564,0.13944858]
[1771082439244,1.2710405,87.599,87.561,11.42060963]
[1771082441253,1.28428214,87.597,87.556,0.14442749]
[1771082442252,1.28428214,87.579,87.539,11.42347982]
[1771082443637,2.92030583,87.57,87.539,11.42347982]
[1771082443837,1.28428214,87.569,87.539,11.42347982]
[1771082444756,1.28428214,87.577,87.541,0.15383613]
[1771082445644,1.28428214,87.574,87.541,0.15383613]
[1771082445851,12.70332682,87.573,87.542,0.15534022]
[1771082446049,1.28428214,87.572,87.542,0.15534022]
[1771082446253,1.28428214,87.572,87.534,0.15682957]
[1771082446433,2.92030583,87.56,87.526,0.15682957]
[1771082446638,1.28428214,87.559,87.526,0.15682957]
[1771082446847,1.28428214,87.559,87.52,2.92030583]
[1771082447436,11.42100093,87.558,87.523,11.4255576]
[1771082447761,1.28428214,87.557,87.523,11.4255576]
[1771082450260,1.28428214,87.555,87.515,0.15977722]
[1771082450558,1.28428214,87.555,87.517,0.16265955]
[1771082451567,1.28428214,87.549,87.517,0.16265955]
[1771082451767,1.28428214,87.549,87.514,11.42674314]
[1771082452258,1.28428214,87.547,87.514,11.42674314]
[1771082452463,1.28428214,87.547,87.51,30.75242867]
[1771082453265,1.28428214,87.547,87.511,11.42713487]
[1771082453652,1.28428214,87.547,87.511,11.59399243]
[1771082454954,1.28428214,87.545,87.512,0.16959882]
[1771082455651,11.42256642,87.546,87.512,0.16959882]
[1771082455960,11.42203123,87.551,87.521,0.16959882]
[1771082457864,1.28428214,87.55,87.521,0.16959882]
[1771082458366,1.28428214,87.55,87.523,0.17352654]
[1771082458569,11.42203123,87.551,87.523,0.17352654]
[1771082459071,1.28428214,87.551,87.523,0.17352654]
[1771082459768,1.28428214,87.551,87.524,11.42543759]
[1771082460356,1.28428214,87.549,87.518,11.42612631]
[1771082460555,1.28428214,87.539,87.51,30.75242867]
[1771082461168,1.28428214,87.539,87.511,11.42713487]
[1771082461758,12.66492088,87.519,87.51,23.74979245]
[1771082462069,12.66492088,87.519,87.49,0.17860031]
[1771082462450,2.92030583,87.51,87.49,0.17860031]
[1771082462651,2.92030583,87.51,87.482,1.36034212]
[1771082463991,1.23872717,87.499,87.45,3.12030583]
[1771082464278,1.23872717,87.499,87.46,2.92030583]
[1771082464466,1.23872717,87.499,87.454,58.82]
[1771082464654,1.23872717,87.489,87.454,58.82]
[1771082464856,2.92030583,87.48,87.45,0.2]
[1771082465057,36.62,87.5,87.45,0.2]
[1771082465058,1.23872717,87.469,87.45,0.2]
[1771082466078,1.23872717,87.467,87.45,1e-08]
[1771082467974,11.43216304,87.473,87.45,1.32509143]
[1771082468762,2.92030583,87.47,87.45,1e-08]
[1771082468974,8.56500652,87.47,87.45,1e-08]
[1771082469476,1.23872717,87.469,87.45,1e-08]
[1771082470480,1.23872717,87.467,87.45,1e-08]
[1771082471985,11.43275254,87.468,87.45,1e-08]
[1771082472388,5.36086188,87.537,87.45,1e-08]
[1771082472389,11.43103127,87.482,87.451,1.32509142]
[1771082472698,11.43103127,87.482,87.453,1.32509142]
[1771082475089,11.43103127,87.482,87.45,1e-08]
[1771082475090,1.23872717,87.469,87.45,1e-08]
[1771082475390,1.23872717,87.459,87.45,1e-08]
[1771082475885,12.67273246,87.459,87.45,1e-08]
[1771082476787,54.26,87.459,87.45,1e-08]
[1771082478969,1.23872717,87.457,87.45,1e-08]
[1771082479290,1.23872717,87.455,87.43,0.2]
[1771082479501,1.23872717,87.449,87.43,0.2]
[1771082480099,7.32627935,87.44,87.427,23.33550444]
[1771082480274,65.7553673,87.448,87.427,23.33550444]
[1771082480579,65.7553673,87.448,87.411,1.41339031]
[1771082480780,94.34378555,87.448,87.411,1.41339031]
[1771082481182,7.32627935,87.44,87.411,1.41339031]
[1771082481583,54.34,87.439,87.411,1.41339031]
[1771082482493,65.77666311,87.439,87.413,1.41339031]
[1771082484096,0.02459516,87.438,87.407,11.44067909]
[1771082484475,54.36,87.437,87.407,11.44067909]
[1771082484973,11.43693673,87.436,87.407,1.41339031]
[1771082486095,40.02927855,87.436,87.407,1.41339031]
[1771082486484,54.4,87.435,87.407,1.41339031]
[1771082487000,11.43719834,87.434,87.407,1.41339031]
[1771082487384,0.04234334,87.433,87.392,1.41339031]
[1771082487704,7.32627935,87.42,87.392,1.41339031]
[1771082488000,0.04808948,87.419,87.392,1.41339031]
[1771082488181,54.48808948,87.418,87.392,1.41339031]
[1771082488900,54.44,87.418,87.392,1.41339031]
[1771082489201,11.43942253,87.417,87.392,1.41339031]
[1771082489699,54.46,87.42,87.401,1.41339031]
[1771082489878,53.0283635,87.42,87.401,1.32509142]
[1771082490982,1.23872717,87.417,87.385,11.4434976]
[1771082491183,1.23872717,87.417,87.385,12.80233425]
[1771082491784,1.23872717,87.417,87.385,11.4434976]
[1771082492705,1.23872717,87.417,87.385,12.80233425]
[1771082493215,60.35464285,87.42,87.38,0.2]
[1771082493216,1.35181547,87.409,87.38,0.2]
[1771082493505,1.35181547,87.409,87.381,12.8029721]
[1771082493721,12.79136886,87.416,87.382,1.35883665]
[1771082493882,1.35181547,87.415,87.382,1.35883665]
[1771082494282,1.35181547,87.413,87.382,1.35883665]
[1771082494694,1.35181547,87.411,87.382,1.35883665]
[1771082495019,1.35181547,87.409,87.38,0.2]
[1771082496005,54.48,87.41,87.382,1.35883665]
[1771082496403,54.48,87.41,87.381,11.44413545]
[1771082496404,54.52,87.409,87.391,1.35883665]
[1771082496800,12.79032219,87.424,87.393,1.35883665]
[1771082497004,54.52,87.423,87.393,1.35883665]
[1771082498115,1.35181547,87.422,87.393,1.35883665]
[1771082498317,1.35181547,87.419,87.382,1.35883665]
[1771082499233,1.35181547,87.417,87.382,1.35883665]
[1771082499697,11.43929167,87.418,87.391,1.35883665]
[1771082500213,11.43876965,87.422,87.391,1.35883665]
[1771082503226,54.58,87.421,87.393,1.42026033]
[1771082505536,54.58,87.421,87.394,11.44243311]
[1771082505736,11.43902997,87.42,87.395,1.42026033]
[1771082506438,28.5930241,87.434,87.401,1.42026033]
[1771082506439,54.62,87.419,87.401,1.42026033]
[1771082507331,7.33707437,87.44,87.401,1.42026033]
[1771082507332,1.35694216,87.427,87.401,1.42026033]
[1771082507548,45.46,87.426,87.401,1.42026033]
[1771082507728,54.62,87.425,87.403,1.42026033]
[1771082508438,1.35694216,87.428,87.403,1.42026033]
[1771082508741,54.62,87.427,87.403,1.42026033]
[1771082509324,54.62,87.427,87.405,1.42026033]
[1771082509642,1.35694216,87.428,87.405,1.42026033]
[1771082509938,54.6,87.45,87.421,1.42026033]
[1771082510323,54.6,87.45,87.431,1.42026033]
[1771082511243,1.35694216,87.453,87.431,1.42026033]
[1771082511426,55.97694216,87.452,87.431,1.42026033]
[1771082511946,1.35694216,87.451,87.431,1.42026033]
[1771082512242,1.35694216,87.451,87.41,1.42026033]
[1771082512243,1.35694216,87.449,87.41,1.42026033]
[1771082512437,1.35694216,87.439,87.404,1.42026033]
[1771082513752,1.35694216,87.437,87.405,11.44099307]
[1771082514329,1.35694216,87.435,87.405,11.44099307]
[1771082514550,1.35694216,87.435,87.4,2.93284406]
[1771082514551,1.35694216,87.435,87.401,1.42026033]
[1771082514849,1.35694216,87.435,87.402,1.42026033]
[1771082515949,1.35694216,87.433,87.402,1.42026033]
[1771082518841,1.35694216,87.431,87.404,1.42026033]
[1771082520045,12.79466376,87.43,87.404,1.42026033]
[1771082520243,1.35694216,87.44,87.411,1.42026033]
[1771082520449,54.62,87.44,87.421,1.42026033]
[1771082520943,54.62,87.44,87.41,2.93284406]
[1771082520944,1.35694216,87.439,87.415,1.42026033]
[1771082521271,1.52180637,87.437,87.408,1.42026033]
[1771082521828,1.52180637,87.437,87.411,1.46478101]
[1771082522033,54.62,87.436,87.411,1.46478101]
[1771082522240,12.95869315,87.437,87.411,1.46478101]
[1771082522534,12.95573541,87.459,87.431,1.46478101]
[1771082522733,54.62,87.463,87.431,1.46478101]
[1771082522950,1.52180637,87.439,87.4,1.46478101]
[1771082523149,40.01647775,87.464,87.352,24.34865524]
[1771082523150,1.52180637,87.419,87.382,1.46478101]
[1771082523454,1.52180637,87.417,87.383,1.46478101]
[1771082524041,1.52180637,87.431,87.401,1.46478101]
[1771082524248,12.95948095,87.431,87.402,11.44138578]
[1771082524459,1.52180637,87.43,87.403,1.46478101]
[1771082524758,54.64,87.436,87.411,1.46478101]
[1771082525153,54.64,87.451,87.421,1.46478101]
[1771082525862,1.52180637,87.45,87.421,1.46478101]
[1771082526440,1.52180637,87.447,87.417,1.46478101]
[1771082526943,1.52180637,87.447,87.421,1.46478101]
[1771082529347,1.52180637,87.459,87.423,1.46478101]
[1771082529545,11.43423079,87.457,87.431,1.46478101]
[1771082529746,1.52180637,87.468,87.431,1.46478101]
[1771082529958,2.93284406,87.47,87.431,1.46478101]
[1771082529959,1.52180637,87.466,87.431,1.46478101]
[1771082530161,1.52180637,87.466,87.441,1.46478101]
[1771082531461,1.52180637,87.466,87.442,11.43615196]
[1771082531656,1.52180637,87.466,87.443,1.46478101]
[1771082531858,11.43262184,87.469,87.443,1.46478101]
[1771082532959,66.11163669,87.477,87.451,1.46478101]
[1771082533447,66.11163669,87.477,87.436,11.43688322]
[1771082533448,1.52180637,87.474,87.436,11.43688322]
[1771082533654,1.52180637,87.469,87.436,11.43688322]
[1771082534163,54.68,87.473,87.451,1.46478101]
[1771082534359,11.43183766,87.475,87.451,1.46478101]
[1771082534550,54.68,87.474,87.451,1.46478101]
[1771082534746,1.52180637,87.488,87.46,2.93284406]
[1771082534950,1.52180637,87.486,87.46,2.93284406]
[1771082535152,1.52180637,87.486,87.451,1.46478101]
[1771082536151,1.52180637,87.484,87.453,1.46478101]
[1771082536364,2.93284406,87.48,87.446,1.46478101]
[1771082536663,2.93284406,87.48,87.437,11.43680592]
[1771082536664,1.52180637,87.479,87.451,1.46478101]
[1771082539467,11.43144562,87.478,87.451,1.46478101]
[1771082540469,54.68,87.48,87.461,1.46478101]
[1771082541469,56.20180637,87.48,87.461,1.46478101]
[1771082541668,54.68,87.48,87.461,1.46478101]
[1771082541859,1.52180637,87.479,87.461,1.46478101]
[1771082543359,1.52180637,87.486,87.462,12.89831786]
[1771082543553,1.52180637,87.484,87.462,12.89831786]
[1771082544080,1.52180637,87.484,87.463,1.46478101]
[1771082544886,2.93284406,87.5,87.43,57.18820719]
[1771082544887,1.52180637,87.499,87.465,1.46478101]
[1771082545058,54.74,87.498,87.465,1.46478101]
[1771082545254,1.52180637,87.497,87.465,1.46478101]
[1771082545955,1.52180637,87.495,87.465,1.46478101]
[1771082546169,1.52180637,87.495,87.466,11.43301397]
[1771082546972,1.52180637,87.495,87.471,1.46478101]
[1771082549381,11.42900418,87.497,87.473,1.46478101]
[1771082550295,3.03284406,87.51,87.481,1.46478101]
[1771082550296,54.78,87.501,87.481,1.46478101]
[1771082552078,11.42857142,87.5,87.481,1.46478101]
[1771082552294,1.49281539,87.499,87.481,1.46478101]
[1771082552762,1.49281539,87.499,87.471,11.43236043]
[1771082552969,1.49281539,87.499,87.472,1.43701995]
[1771082553572,1.49281539,87.499,87.474,1.43701995]
[1771082555386,1.49281539,87.499,87.476,1.43701995]
[1771082555762,54.78,87.501,87.481,1.43701995]
[1771082556489,1.49281539,87.505,87.481,1.43701995]
[1771082556670,54.86,87.502,87.481,1.43701995]
[1771082557984,1.49281539,87.501,87.481,1.43701995]
[1771082558488,1.49281539,87.501,87.483,1.43701995]
[1771082558786,54.88,87.502,87.483,1.43701995]
[1771082559890,56.37281539,87.502,87.483,1.43701995]
[1771082560580,54.88,87.502,87.483,1.43701995]
[1771082563576,56.47557293,87.502,87.483,1.43701995]
[1771082563793,1.59557293,87.499,87.471,1.47297741]
[1771082563976,1.59557293,87.499,87.461,1.47297741]
[1771082564371,1.59557293,87.497,87.461,1.47297741]
[1771082565500,11.4290939,87.496,87.462,1.47297741]
[1771082565695,1.59557293,87.495,87.462,1.47297741]
[1771082566798,1.59557293,87.489,87.462,1.47297741]
[1771082567578,1.59557293,87.487,87.462,1.47297741]
[1771082568176,1.59557293,87.485,87.462,1.47297741]
[1771082568380,1.59557293,87.485,87.46,11.43374627]
[1771082568600,1.59557293,87.483,87.46,1.47297741]
[1771082569508,1.59557293,87.498,87.46,1.47297741]
[1771082569803,54.96,87.497,87.481,1.47297741]
[1771082570293,1.59557293,87.504,87.481,1.47297741]
[1771082570485,54.96,87.503,87.481,1.47297741]
[1771082571596,1.59557293,87.504,87.481,1.47297741]
[1771082571786,11.4281796,87.503,87.481,1.47297741]
[1771082572797,1.59557293,87.502,87.481,1.47297741]
[1771082573581,1.59557293,87.489,87.452,1.47297741]
[1771082574400,1.59557293,87.488,87.452,1.47297741]
[1771082574597,1.59557293,87.487,87.46,4.40046713]
[1771082574901,1.59557293,87.487,87.463,1.47297741]
[1771082575112,54.98,87.488,87.463,1.47297741]
[1771082576377,1.59557293,87.487,87.457,1.47297741]
[1771082576590,1.59557293,87.485,87.456,11.43427336]
[1771082576983,1.59557293,87.483,87.455,1.47297741]
[1771082577977,1.59557293,87.483,87.456,12.90729866]
[1771082578178,1.59557293,87.481,87.456,12.90729866]
[1771082579394,1.59557293,87.481,87.457,1.47297741]
[1771082579902,152.1420111,88.587,87.461,1.47297741]
[1771082579903,1.59557293,87.496,87.461,1.47297741]
[1771082581507,28.56904187,87.508,87.441,1.5526414]
[1771082581508,1.60026923,87.479,87.441,1.5526414]
[1771082581885,1.60026923,87.459,87.432,1.5526414]
[1771082582090,1.60026923,87.449,87.422,1.5526414]
[1771082582301,2.92748972,87.45,87.413,11.43993538]
[1771082582302,1.60026923,87.447,87.414,1.5526414]
[1771082582623,1.60026923,87.439,87.406,12.99338557]
[1771082582807,1.60026923,87.429,87.392,1.5526414]
[1771082583103,4.61729252,87.48,87.391,11.44282592]
[1771082583104,2.92748972,87.44,87.401,1.5526414]
[1771082583301,13.03707515,87.437,87.403,1.5526414]
[1771082583511,15.96,87.436,87.403,1.5526414]
[1771082584002,17.56026923,87.436,87.403,1.5526414]
[1771082584413,55.0,87.435,87.405,1.5526414]
[1771082585890,56.60026923,87.435,87.405,1.5526414]
[1771082586491,56.60026923,87.435,87.407,1.5526414]
[1771082588913,1.60026923,87.434,87.409,1.5526414]
[1771082589509,1.60026923,87.419,87.386,1.5526414]
[1771082589710,55.08,87.418,87.386,1.5526414]
[1771082589909,1.60026923,87.417,87.386,1.5526414]
[1771082590104,1.60026923,87.432,87.391,1.5526414]
[1771082590309,1.60026923,87.43,87.401,1.5526414]
[1771082590496,1.60026923,87.428,87.401,1.5526414]
[1771082590803,11.43808406,87.428,87.401,1.5526414]
[1771082591120,1.60026923,87.427,87.401,1.5526414]
[1771082592016,1.60026923,87.425,87.401,1.5526414]
[1771082593215,55.12,87.424,87.401,1.5526414]
[1771082593394,1.60026923,87.425,87.401,1.5526414]
[1771082593590,55.12,87.423,87.401,1.5526414]
[1771082593815,1.60026923,87.434,87.403,1.5526414]
[1771082594019,2.92748972,87.44,87.403,1.5526414]
[1771082594020,32.00026923,87.433,87.403,1.5526414]
[1771082594314,1.60026923,87.433,87.403,1.5526414]
[1771082594518,2.92748972,87.5,87.411,1.5526414]
[1771082594519,1.60026923,87.449,87.411,1.5526414]
[1771082594829,1.60026923,87.448,87.411,1.5526414]
[1771082595124,1.60026923,87.475,87.431,1.5526414]
[1771082595311,1.60026923,87.475,87.441,1.5526414]
[1771082595616,1.60026923,87.475,87.443,1.5526414]
[1771082595816,28.57350697,87.494,87.442,11.43615196]
[1771082595817,1.60026923,87.48,87.451,1.5526414]
[1771082596718,1.60026923,87.488,87.451,1.5526414]
[1771082597718,1.60026923,87.486,87.453,1.5526414]
[1771082599001,2.92748972,87.49,87.461,1.5526414]
[1771082599002,1.60026923,87.49,87.461,1.5526414]
[1771082599205,1.60026923,87.489,87.454,12.98722415]
[1771082601630,1.60026923,87.487,87.454,12.98722415]
[1771082602024,1.60026923,87.487,87.442,1.5526414]
[1771082602222,1.60026923,87.479,87.442,1.5526414]
[1771082603219,1.60026923,87.477,87.444,1.5526414]
[1771082605030,1.60026923,87.475,87.446,1.5526414]
[1771082607332,1.60026923,87.473,87.446,1.5526414]
[1771082607520,1.60026923,87.473,87.441,1.5526414]
[1771082610041,2.92748972,87.47,87.431,1.5526414]
[1771082610335,55.14,87.469,87.432,1.5526414]
[1771082610742,1.60026923,87.472,87.457,1.5526414]
[1771082612923,0.80900001,87.535,87.457,1.5526414]
[1771082613137,1.54206044,87.508,87.471,1.55523396]
[1771082613348,1.54206044,87.489,87.455,1.55523396]
[1771082613640,1.54206044,87.489,87.461,1.55523396]
[1771082614642,1.54206044,87.487,87.461,1.55523396]
[1771082615343,1.54206044,87.492,87.462,12.98877081]
[1771082615638,1.54206044,87.489,87.462,1.55523396]
[1771082617123,1.54206044,87.487,87.454,1.55523396]
[1771082618316,1.54206044,87.485,87.454,1.55523396]
[1771082619930,1.54206044,87.496,87.461,1.55523396]
[1771082620121,11.42922452,87.495,87.461,1.55523396]
[1771082620322,55.1,87.504,87.471,1.55523396]
[1771082620639,1.62334911,87.502,87.471,1.55523396]
[1771082622432,13.05178992,87.501,87.471,1.55523396]
[1771082622628,1.62334911,87.5,87.471,1.55523396]
[1771082624347,0.1,87.51,87.474,1.62354552]
[1771082624527,1.62334911,87.509,87.481,1.62354552]
[1771082625342,1.62334911,87.509,87.47,2.92970018]
[1771082625546,1.62334911,87.509,87.471,1.62354552]
[1771082626747,1.62334911,87.507,87.48,2.92970018]
[1771082628450,1.62334911,87.507,87.48,4.5532457]
[1771082629354,11.4277878,87.506,87.48,4.5532457]
[1771082629651,1.62334911,87.505,87.48,4.5532457]
[1771082631753,0.1,87.51,87.491,1.62354552]
[1771082631932,1.62334911,87.518,87.5,2.92970018]
[1771082632948,1.62334911,87.524,87.501,1.62354552]
[1771082633150,13.04775578,87.532,87.501,1.62354552]
[1771082633357,1.62334911,87.531,87.51,2.92970018]
[1771082633528,1.62334911,87.531,87.482,1.62354552]
[1771082633854,1.62334911,87.531,87.501,1.62354552]
[1771082634053,1.62334911,87.531,87.503,1.62354552]
[1771082635349,1.62334911,87.531,87.504,11.428049]
[1771082635547,1.62334911,87.531,87.505,1.62354552]
[1771082635753,1.62334911,87.529,87.505,1.62354552]
[1771082637041,1.62334911,87.529,87.51,2.92970018]
[1771082639758,1.62334911,87.527,87.51,2.92970018]
[1771082641334,1.52680858,87.532,87.51,2.92970018]
[1771082641542,1.52680858,87.532,87.503,1.53208469]
[1771082641860,1.52680858,87.519,87.48,2.92970018]
[1771082642070,1.52680858,87.519,87.491,1.53208469]
[1771082642247,1.52680858,87.519,87.5,2.92970018]
[1771082642680,1.52680858,87.519,87.5,4.46178487]
[1771082643369,1.52680858,87.517,87.49,2.92970018]
[1771082643539,1.52680858,87.517,87.487,1.53208469]
[1771082643737,2.92970018,87.51,87.472,1.53208469]
[1771082644039,39.99177311,87.518,87.49,2.92970018]
[1771082644040,1.52680858,87.509,87.49,2.92970018]
[1771082644445,1.52680858,87.516,87.5,2.92970018]
[1771082644933,1.52680858,87.522,87.5,2.92970018]
[1771082645133,1.52680858,87.529,87.51,2.92970018]
[1771082645659,1.52680858,87.527,87.5,2.92970018]
[1771082645837,1.52680858,87.527,87.495,11.42922452]
[1771082646152,1.52680858,87.527,87.5,2.92970018]
[1771082646354,1.52680858,87.527,87.496,1.53208469]
[1771082648256,1.52680858,87.525,87.497,12.96104796]
[1771082648844,1.52680858,87.525,87.498,1.53208469]
[1771082649854,1.52680858,87.519,87.489,1.53208469]
[1771082651057,1.52680858,87.517,87.484,1.53208469]
[1771082655851,1.52680858,87.515,87.486,1.53208469]
[1771082656765,1.52680858,87.509,87.473,1.53208469]